[Event "Titled Tuesday Blitz December 20 Early 2022"]
[White "MusicCityMaster"]
[Black "lemayvega"]
[WhiteElo "2329"]
[BlackElo "2529"]
[Result "0-1"]
[Round "08"]
[TimeControl "180+2"]
[Date "2022.12.20"]
[WhiteClock "0:00:42"]
[BlackClock "0:00:11"]

1. e4 {[%clk 0:03:00]}  c5 {[%clk 0:02:59]} 2. Nf3 {[%clk 0:03:00]}  Nc6 {[%clk 0:02:59]} 3. d3 {[%clk 0:03:01]}  g6 {[%clk 0:02:59]} 4. g3 {[%clk 0:03:01]}  Bg7 {[%clk 0:03:00]} 5. Bg2 {[%clk 0:03:02]}  d6 {[%clk 0:03:00]} 6. O-O {[%clk 0:03:02]}  Nf6 {[%clk 0:03:01]} 7. Re1 {[%clk 0:03:03]}  Bg4 {[%clk 0:03:01]} 8. Nbd2 {[%clk 0:03:02]}  O-O {[%clk 0:03:00]} 9. h3 {[%clk 0:03:02]}  Bxf3 {[%clk 0:02:59]} 10. Nxf3 {[%clk 0:03:02]}  Nd7 {[%clk 0:02:59]} 11. c3 {[%clk 0:03:01]}  Rb8 {[%clk 0:02:59]} 12. d4 {[%clk 0:02:58]}  cxd4 {[%clk 0:02:57]} 13. cxd4 {[%clk 0:02:58]}  Qb6 {[%clk 0:02:56]} 14. d5 {[%clk 0:02:45]}  Nce5 {[%clk 0:02:49]} 15. Rb1 {[%clk 0:02:35]}  Rfc8 {[%clk 0:02:44]} 16. Be3 {[%clk 0:02:30]}  Qa6 {[%clk 0:02:26]} 17. a3 {[%clk 0:02:25]}  Rc7 {[%clk 0:02:08]} 18. Nd4 {[%clk 0:02:17]}  b5 {[%clk 0:01:49]} 19. Bf1 {[%clk 0:02:15]}  Nc4 {[%clk 0:01:47]} 20. Nc6 {[%clk 0:02:06]}  Rxc6 {[%clk 0:01:36]} 21. dxc6 {[%clk 0:02:05]}  Qxc6 {[%clk 0:01:37]} 22. Bxa7 {[%clk 0:02:00]}  Rc8 {[%clk 0:00:59]} 23. Bd4 {[%clk 0:02:00]}  Nde5 {[%clk 0:00:55]} 24. Rc1 {[%clk 0:01:54]}  Qb7 {[%clk 0:00:42]} 25. Bg2 {[%clk 0:01:27]}  Qd7 {[%clk 0:00:12]} 26. f4 {[%clk 0:01:24]}  Nc6 {[%clk 0:00:10]} 27. Bxg7 {[%clk 0:01:24]}  Kxg7 {[%clk 0:00:11]} 28. Kh2 {[%clk 0:01:16]}  Nxb2 {[%clk 0:00:08]} 29. Qb3 {[%clk 0:01:13]}  Nc4 {[%clk 0:00:07]} 30. Qxb5 {[%clk 0:01:11]}  N6e5 {[%clk 0:00:02]} 31. Qxd7 {[%clk 0:01:06]}  Nxd7 {[%clk 0:00:03]} 32. Bf1 {[%clk 0:01:02]}  Ncb6 {[%clk 0:00:02]} 33. Rxc8 {[%clk 0:01:01]}  Nxc8 {[%clk 0:00:02]} 34. a4 {[%clk 0:01:01]}  Nc5 {[%clk 0:00:03]} 35. a5 {[%clk 0:01:01]}  Na7 {[%clk 0:00:03]} 36. Rb1 {[%clk 0:01:00]}  Kf6 {[%clk 0:00:03]} 37. Rb7 {[%clk 0:01:00]}  Nxb7 {[%clk 0:00:02]} 38. g4 {[%clk 0:00:58]}  Nc5 {[%clk 0:00:03]} 39. Kg3 {[%clk 0:00:58]}  e5 {[%clk 0:00:04]} 40. g5+ {[%clk 0:00:58]}  Ke7 {[%clk 0:00:03]} 41. f5 {[%clk 0:00:57]}  gxf5 {[%clk 0:00:03]} 42. exf5 {[%clk 0:00:57]}  d5 {[%clk 0:00:03]} 43. Kf3 {[%clk 0:00:56]}  f6 {[%clk 0:00:04]} 44. g6 {[%clk 0:00:55]}  hxg6 {[%clk 0:00:04]} 45. fxg6 {[%clk 0:00:56]}  Kf8 {[%clk 0:00:05]} 46. h4 {[%clk 0:00:53]}  Kg7 {[%clk 0:00:05]} 47. h5 {[%clk 0:00:54]}  Kh6 {[%clk 0:00:05]} 48. Bh3 {[%clk 0:00:52]}  Nc6 {[%clk 0:00:05]} 49. a6 {[%clk 0:00:46]}  Nxa6 {[%clk 0:00:05]} 50. Be6 {[%clk 0:00:46]}  Nd4+ {[%clk 0:00:06]} 51. Kg4 {[%clk 0:00:45]}  Nxe6 {[%clk 0:00:07]} 52. Kh4 {[%clk 0:00:46]}  Ng7 {[%clk 0:00:07]} 53. Kg4 {[%clk 0:00:44]}  Nc5 {[%clk 0:00:08]} 54. Kh4 {[%clk 0:00:45]}  Nce6 {[%clk 0:00:09]} 55. Kg4 {[%clk 0:00:45]}  Ng5 {[%clk 0:00:09]} 56. Kh4 {[%clk 0:00:45]}  d4 {[%clk 0:00:10]} 57. Kg4 {[%clk 0:00:46]}  Nxh5 {[%clk 0:00:10]} 58. Kf5 {[%clk 0:00:46]}  d3 {[%clk 0:00:09]} 59. g7 {[%clk 0:00:44]}  Nxg7+ {[%clk 0:00:09]} 60. Kxf6 {[%clk 0:00:44]}  d2 {[%clk 0:00:10]} 61. Ke7 {[%clk 0:00:42]}  d1=Q {[%clk 0:00:10]} 62. Kf8 {[%clk 0:00:42]}  e4 {[%clk 0:00:11]} 63. Kg8 {[%clk 0:00:42]}  e3 {[%clk 0:00:11]} 64. Kh8 {[%clk 0:00:42]}  Qd8# {[%clk 0:00:11]} 0-1


[Site "https://www.chess.com"]

[Event "Titled Tuesday Blitz December 20 Early 2022"]
[White "Najdoski, Toni"]
[Black "Alex_Sahakyan2006"]
[WhiteFideId "15001334"]
[WhiteElo "2598"]
[BlackElo "2611"]
[Result "0-1"]
[Round "08"]
[TimeControl "180+2"]
[Date "2022.12.20"]
[WhiteClock "0:01:23"]
[BlackClock "0:02:08"]

1. e4 {[%clk 0:03:00]}  d5 {[%clk 0:02:53]} 2. exd5 {[%clk 0:02:59]}  Qxd5 {[%clk 0:02:54]} 3. Nc3 {[%clk 0:02:58]}  Qd8 {[%clk 0:02:54]} 4. Nf3 {[%clk 0:02:57]}  Nf6 {[%clk 0:02:54]} 5. Bc4 {[%clk 0:02:58]}  Bf5 {[%clk 0:02:55]} 6. d3 {[%clk 0:02:52]}  e6 {[%clk 0:02:54]} 7. O-O {[%clk 0:02:53]}  Bd6 {[%clk 0:02:54]} 8. h3 {[%clk 0:02:53]}  O-O {[%clk 0:02:54]} 9. Re1 {[%clk 0:02:51]}  c6 {[%clk 0:02:54]} 10. Ne2 {[%clk 0:02:47]}  Nbd7 {[%clk 0:02:54]} 11. Bf4 {[%clk 0:02:47]}  Bxf4 {[%clk 0:02:52]} 12. Nxf4 {[%clk 0:02:48]}  Nd5 {[%clk 0:02:53]} 13. Nh5 {[%clk 0:02:40]}  N7f6 {[%clk 0:02:51]} 14. Ng3 {[%clk 0:02:40]}  Bg6 {[%clk 0:02:50]} 15. Ne5 {[%clk 0:02:40]}  Qb6 {[%clk 0:02:47]} 16. Qd2 {[%clk 0:02:22]}  Rad8 {[%clk 0:02:42]} 17. a4 {[%clk 0:02:18]}  a5 {[%clk 0:02:40]} 18. Nxg6 {[%clk 0:02:06]}  hxg6 {[%clk 0:02:39]} 19. c3 {[%clk 0:02:05]}  Qc5 {[%clk 0:02:35]} 20. Rad1 {[%clk 0:01:58]}  Nb6 {[%clk 0:02:33]} 21. Bb3 {[%clk 0:01:59]}  Rd7 {[%clk 0:02:32]} 22. d4 {[%clk 0:01:56]}  Qd6 {[%clk 0:02:32]} 23. Bc2 {[%clk 0:01:51]}  Rfd8 {[%clk 0:02:31]} 24. Qg5 {[%clk 0:01:49]}  Nc4 {[%clk 0:02:30]} 25. b3 {[%clk 0:01:47]}  Na3 {[%clk 0:02:25]} 26. Bd3 {[%clk 0:01:44]}  b6 {[%clk 0:02:25]} 27. h4 {[%clk 0:01:40]}  c5 {[%clk 0:02:12]} 28. h5 {[%clk 0:01:35]}  gxh5 {[%clk 0:02:06]} 29. Nxh5 {[%clk 0:01:36]}  Nxh5 {[%clk 0:02:07]} 30. Qxh5 {[%clk 0:01:37]}  g6 {[%clk 0:02:07]} 31. Bxg6 {[%clk 0:01:33]}  fxg6 {[%clk 0:02:08]} 32. Qxg6+ {[%clk 0:01:33]}  Rg7 {[%clk 0:02:09]} 33. Qxe6+ {[%clk 0:01:34]}  Qxe6 {[%clk 0:02:08]} 34. Rxe6 {[%clk 0:01:34]}  cxd4 {[%clk 0:02:09]} 35. cxd4 {[%clk 0:01:32]}  Nc2 {[%clk 0:02:08]} 36. Rxb6 {[%clk 0:01:24]}  Nxd4 {[%clk 0:02:08]} 37. Re1 {[%clk 0:01:23]}  Nf3+ {[%clk 0:02:08]} 38. Kf1 {[%clk 0:01:22]}  Nxe1 {[%clk 0:02:08]} 39. Kxe1 {[%clk 0:01:23]}  Re7+ {[%clk 0:02:08]} 0-1


[Site "https://www.chess.com"]

[Event "Titled Tuesday Blitz December 20 Early 2022"]
[White "Ruzele, Darius"]
[Black "Midgardsormur"]
[WhiteFideId "12800104"]
[WhiteElo "2531"]
[BlackElo "2460"]
[Result "0-1"]
[Round "08"]
[TimeControl "180+2"]
[Date "2022.12.20"]
[WhiteClock "0:00:46"]
[BlackClock "0:00:39"]

1. e4 {[%clk 0:03:00]}  c5 {[%clk 0:02:59]} 2. d4 {[%clk 0:03:00]}  cxd4 {[%clk 0:02:58]} 3. c3 {[%clk 0:03:01]}  dxc3 {[%clk 0:02:58]} 4. Nxc3 {[%clk 0:03:01]}  Nc6 {[%clk 0:02:58]} 5. Nf3 {[%clk 0:03:01]}  e6 {[%clk 0:02:59]} 6. Bc4 {[%clk 0:03:01]}  a6 {[%clk 0:02:59]} 7. O-O {[%clk 0:03:01]}  b5 {[%clk 0:03:00]} 8. Bb3 {[%clk 0:03:01]}  Na5 {[%clk 0:03:00]} 9. Bc2 {[%clk 0:03:01]}  Bb7 {[%clk 0:03:00]} 10. Bf4 {[%clk 0:02:58]}  Rc8 {[%clk 0:02:57]} 11. Qe2 {[%clk 0:02:53]}  Bc5 {[%clk 0:02:53]} 12. Rad1 {[%clk 0:02:45]}  Ne7 {[%clk 0:02:52]} 13. Bd6 {[%clk 0:02:31]}  Bxd6 {[%clk 0:02:45]} 14. Rxd6 {[%clk 0:02:31]}  Nc4 {[%clk 0:02:45]} 15. e5 {[%clk 0:02:17]}  Nxd6 {[%clk 0:02:36]} 16. exd6 {[%clk 0:02:17]}  Nd5 {[%clk 0:02:36]} 17. Ne5 {[%clk 0:02:01]}  Nxc3 {[%clk 0:02:06]} 18. bxc3 {[%clk 0:01:55]}  Qh4 {[%clk 0:01:13]} 19. Re1 {[%clk 0:01:39]}  O-O {[%clk 0:01:00]} 20. Qd3 {[%clk 0:00:58]}  g6 {[%clk 0:00:53]} 21. Re3 {[%clk 0:00:54]}  Qg5 {[%clk 0:00:40]} 22. h4 {[%clk 0:00:46]}  Qxg2# {[%clk 0:00:39]} 0-1


[Site "https://www.chess.com"]

[Event "Titled Tuesday Blitz December 20 Early 2022"]
[White "Sanan_Sjugirov"]
[Black "nikitakhoroshev"]
[WhiteElo "2933"]
[BlackElo "2709"]
[Result "1-0"]
[Round "08"]
[TimeControl "180+2"]
[Date "2022.12.20"]
[WhiteClock "0:00:15"]
[BlackClock "0:00:30"]

1. e4 {[%clk 0:03:00]}  e6 {[%clk 0:02:56]} 2. d4 {[%clk 0:03:00]}  d5 {[%clk 0:02:57]} 3. Nc3 {[%clk 0:03:01]}  dxe4 {[%clk 0:02:57]} 4. Nxe4 {[%clk 0:03:00]}  Nd7 {[%clk 0:02:58]} 5. Nf3 {[%clk 0:03:00]}  Ngf6 {[%clk 0:02:59]} 6. Nxf6+ {[%clk 0:02:58]}  Nxf6 {[%clk 0:03:00]} 7. Be3 {[%clk 0:02:44]}  b6 {[%clk 0:02:54]} 8. Bb5+ {[%clk 0:02:31]}  Bd7 {[%clk 0:02:53]} 9. Bd3 {[%clk 0:02:32]}  Bd6 {[%clk 0:02:51]} 10. Ne5 {[%clk 0:02:29]}  Bxe5 {[%clk 0:02:50]} 11. dxe5 {[%clk 0:02:30]}  Nd5 {[%clk 0:02:50]} 12. Bd2 {[%clk 0:02:29]}  Qh4 {[%clk 0:02:44]} 13. O-O {[%clk 0:02:17]}  Bc6 {[%clk 0:02:30]} 14. Re1 {[%clk 0:02:15]}  Nf4 {[%clk 0:02:20]} 15. Bxf4 {[%clk 0:01:03]}  Qxf4 {[%clk 0:02:19]} 16. Re3 {[%clk 0:01:04]}  Rd8 {[%clk 0:02:10]} 17. Qe1 {[%clk 0:01:04]}  h5 {[%clk 0:02:01]} 18. Qc3 {[%clk 0:01:03]}  Bd5 {[%clk 0:01:40]} 19. Qxc7 {[%clk 0:01:00]}  O-O {[%clk 0:01:40]} 20. Qxa7 {[%clk 0:00:51]}  h4 {[%clk 0:01:39]} 21. h3 {[%clk 0:00:41]}  Ra8 {[%clk 0:01:32]} 22. Qxb6 {[%clk 0:00:23]}  Rfb8 {[%clk 0:01:29]} 23. Qc5 {[%clk 0:00:23]}  Rxb2 {[%clk 0:01:20]} 24. a3 {[%clk 0:00:21]}  Rab8 {[%clk 0:01:16]} 25. Ree1 {[%clk 0:00:15]}  Qg5 {[%clk 0:00:46]} 26. Be4 {[%clk 0:00:15]}  Qxe5 {[%clk 0:00:31]} 27. Bh7+ {[%clk 0:00:14]}  Kh8 {[%clk 0:00:30]} 28. Rxe5 {[%clk 0:00:15]} 1-0


[Site "https://www.chess.com"]

[Event "Titled Tuesday Blitz December 20 Early 2022"]
[White "Sapon, Ilia"]
[Black "Sokolov, Ivan"]
[WhiteFideId "13504746"]
[BlackFideId "14400030"]
[WhiteElo "2074"]
[BlackElo "2590"]
[Result "1-0"]
[Round "08"]
[TimeControl "180+2"]
[Date "2022.12.20"]
[WhiteClock "0:00:17"]
[BlackClock "0:00:11"]

1. e4 {[%clk 0:03:00]}  d6 {[%clk 0:02:59]} 2. d4 {[%clk 0:02:59]}  Nf6 {[%clk 0:03:00]} 3. Nc3 {[%clk 0:03:00]}  g6 {[%clk 0:03:00]} 4. Be3 {[%clk 0:02:56]}  Bg7 {[%clk 0:03:00]} 5. h3 {[%clk 0:02:55]}  a6 {[%clk 0:03:00]} 6. g4 {[%clk 0:02:55]}  h5 {[%clk 0:02:56]} 7. g5 {[%clk 0:02:53]}  Nh7 {[%clk 0:02:57]} 8. f4 {[%clk 0:02:43]}  f6 {[%clk 0:02:42]} 9. Bd3 {[%clk 0:02:27]}  fxg5 {[%clk 0:02:40]} 10. f5 {[%clk 0:02:09]}  gxf5 {[%clk 0:02:26]} 11. Qxh5+ {[%clk 0:02:08]}  Kf8 {[%clk 0:02:27]} 12. exf5 {[%clk 0:02:04]}  Nc6 {[%clk 0:02:13]} 13. O-O-O {[%clk 0:01:58]}  Qe8 {[%clk 0:01:54]} 14. Qf3 {[%clk 0:01:46]}  Nxd4 {[%clk 0:01:49]} 15. Qf2 {[%clk 0:01:44]}  c5 {[%clk 0:01:45]} 16. Nf3 {[%clk 0:01:30]}  Nxf3 {[%clk 0:01:32]} 17. Qxf3 {[%clk 0:01:30]}  Bxc3 {[%clk 0:01:17]} 18. bxc3 {[%clk 0:01:31]}  Qa4 {[%clk 0:01:16]} 19. h4 {[%clk 0:01:19]}  g4 {[%clk 0:00:56]} 20. Bh6+ {[%clk 0:01:07]}  Ke8 {[%clk 0:00:57]} 21. Qe3 {[%clk 0:01:06]}  Qa3+ {[%clk 0:00:34]} 22. Kb1 {[%clk 0:00:57]}  Nf6 {[%clk 0:00:28]} 23. Bg7 {[%clk 0:00:44]}  Nd5 {[%clk 0:00:27]} 24. Qd2 {[%clk 0:00:31]}  Rg8 {[%clk 0:00:16]} 25. Bc4 {[%clk 0:00:30]}  Rxg7 {[%clk 0:00:14]} 26. Qxd5 {[%clk 0:00:27]}  Qxc3 {[%clk 0:00:15]} 27. f6 {[%clk 0:00:25]}  Qxf6 {[%clk 0:00:11]} 28. Rhf1 {[%clk 0:00:25]}  Qe5 {[%clk 0:00:10]} 29. Qxe5 {[%clk 0:00:18]}  dxe5 {[%clk 0:00:11]} 30. Rf8+ {[%clk 0:00:17]} 1-0


[Site "https://www.chess.com"]

[Event "Titled Tuesday Blitz December 20 Early 2022"]
[White "Shankland, Sam"]
[Black "Hsu, Li Yang"]
[WhiteFideId "2004887"]
[BlackFideId "5800080"]
[WhiteElo "2711"]
[BlackElo "2427"]
[Result "0-1"]
[Round "08"]
[TimeControl "180+2"]
[Date "2022.12.20"]
[WhiteClock "0:02:15"]
[BlackClock "0:02:14"]

1. d4 {[%clk 0:03:00]}  Nf6 {[%clk 0:02:59]} 2. c4 {[%clk 0:03:00]}  c5 {[%clk 0:03:00]} 3. d5 {[%clk 0:03:00]}  b5 {[%clk 0:03:00]} 4. cxb5 {[%clk 0:03:00]}  a6 {[%clk 0:03:00]} 5. bxa6 {[%clk 0:03:01]}  Bxa6 {[%clk 0:03:01]} 6. Nc3 {[%clk 0:03:01]}  d6 {[%clk 0:03:01]} 7. e4 {[%clk 0:03:01]}  Bxf1 {[%clk 0:03:01]} 8. Kxf1 {[%clk 0:03:02]}  g6 {[%clk 0:03:01]} 9. Nf3 {[%clk 0:03:02]}  Bg7 {[%clk 0:03:02]} 10. g3 {[%clk 0:03:02]}  O-O {[%clk 0:03:03]} 11. Kg2 {[%clk 0:03:02]}  Nbd7 {[%clk 0:03:02]} 12. a4 {[%clk 0:03:02]}  Qb6 {[%clk 0:03:02]} 13. Qe2 {[%clk 0:02:58]}  Rfb8 {[%clk 0:03:01]} 14. Bd2 {[%clk 0:02:57]}  Ne8 {[%clk 0:03:01]} 15. Rhb1 {[%clk 0:02:50]}  Nc7 {[%clk 0:02:58]} 16. Ra3 {[%clk 0:02:46]}  Qa6 {[%clk 0:02:30]} 17. Qxa6 {[%clk 0:02:44]}  Rxa6 {[%clk 0:02:30]} 18. b3 {[%clk 0:02:41]}  Bxc3 {[%clk 0:02:25]} 19. Bxc3 {[%clk 0:02:38]}  Nb5 {[%clk 0:02:25]} 20. Rba1 {[%clk 0:02:14]}  Nxc3 {[%clk 0:02:23]} 21. Nd2 {[%clk 0:02:15]}  Ne2 {[%clk 0:02:14]} 0-1


[Site "https://www.chess.com"]

[Event "Titled Tuesday Blitz December 20 Early 2022"]
[White "Shockerlover"]
[Black "Zozik, S. Mohammed"]
[BlackFideId "4803280"]
[WhiteElo "1948"]
[BlackElo "2116"]
[Result "0-1"]
[Round "08"]
[TimeControl "180+2"]
[Date "2022.12.20"]
[WhiteClock "0:00:01"]
[BlackClock "0:00:52"]

1. d4 {[%clk 0:02:58]}  Nf6 {[%clk 0:02:52]} 2. Nf3 {[%clk 0:02:49]}  c5 {[%clk 0:02:52]} 3. d5 {[%clk 0:02:47]}  d6 {[%clk 0:02:52]} 4. c4 {[%clk 0:02:47]}  g6 {[%clk 0:02:52]} 5. Nc3 {[%clk 0:02:46]}  Bg7 {[%clk 0:02:52]} 6. g3 {[%clk 0:02:46]}  O-O {[%clk 0:02:52]} 7. Bg2 {[%clk 0:02:47]}  a6 {[%clk 0:02:50]} 8. O-O {[%clk 0:02:47]}  e6 {[%clk 0:02:39]} 9. e4 {[%clk 0:02:47]}  exd5 {[%clk 0:02:37]} 10. exd5 {[%clk 0:02:35]}  Re8 {[%clk 0:02:33]} 11. Bg5 {[%clk 0:02:33]}  h6 {[%clk 0:02:32]} 12. Bf4 {[%clk 0:02:21]}  Bf5 {[%clk 0:02:32]} 13. Re1 {[%clk 0:02:19]}  g5 {[%clk 0:02:28]} 14. Rxe8+ {[%clk 0:02:16]}  Nxe8 {[%clk 0:02:27]} 15. Be3 {[%clk 0:02:15]}  Nd7 {[%clk 0:02:24]} 16. Qd2 {[%clk 0:02:05]}  Nef6 {[%clk 0:02:20]} 17. h4 {[%clk 0:02:04]}  g4 {[%clk 0:02:20]} 18. Ne1 {[%clk 0:01:50]}  h5 {[%clk 0:02:19]} 19. Bh6 {[%clk 0:01:36]}  Ne5 {[%clk 0:02:05]} 20. Qg5 {[%clk 0:01:29]}  Bg6 {[%clk 0:02:04]} 21. b3 {[%clk 0:01:08]}  Nfd7 {[%clk 0:01:45]} 22. Qe3 {[%clk 0:00:55]}  Qf6 {[%clk 0:01:38]} 23. Bxg7 {[%clk 0:00:54]}  Kxg7 {[%clk 0:01:36]} 24. Ne4 {[%clk 0:00:54]}  Nf3+ {[%clk 0:01:33]} 25. Nxf3 {[%clk 0:00:51]}  Qxa1+ {[%clk 0:01:33]} 26. Ne1 {[%clk 0:00:50]}  Re8 {[%clk 0:01:32]} 27. Kh2 {[%clk 0:00:31]}  Qd4 {[%clk 0:01:20]} 28. Qg5 {[%clk 0:00:23]}  Rxe4 {[%clk 0:01:16]} 29. Nc2 {[%clk 0:00:16]}  Qe5 {[%clk 0:01:13]} 30. Bxe4 {[%clk 0:00:14]}  Qxg5 {[%clk 0:01:10]} 31. hxg5 {[%clk 0:00:12]}  Bxe4 {[%clk 0:01:11]} 32. Ne3 {[%clk 0:00:12]}  Bb1 {[%clk 0:01:08]} 33. a3 {[%clk 0:00:10]}  a5 {[%clk 0:01:08]} 34. Kg2 {[%clk 0:00:05]}  Ba2 {[%clk 0:01:08]} 35. f3 {[%clk 0:00:05]}  gxf3+ {[%clk 0:01:04]} 36. Kxf3 {[%clk 0:00:05]}  Bxb3 {[%clk 0:01:05]} 37. Nf5+ {[%clk 0:00:04]}  Kg6 {[%clk 0:01:03]} 38. Nxd6 {[%clk 0:00:04]}  Ne5+ {[%clk 0:01:03]} 39. Kf4 {[%clk 0:00:04]}  Nxc4 {[%clk 0:01:04]} 40. Nxb7 {[%clk 0:00:04]}  Nxa3 {[%clk 0:01:00]} 41. d6 {[%clk 0:00:01]}  Be6 {[%clk 0:00:52]} 0-1


[Site "https://www.chess.com"]

[Event "Titled Tuesday Blitz December 20 Early 2022"]
[White "Tarno, Brian"]
[Black "RamonManon0g"]
[WhiteFideId "10833820"]
[WhiteElo "2169"]
[BlackElo "2372"]
[Result "0-1"]
[Round "08"]
[TimeControl "180+2"]
[Date "2022.12.20"]
[WhiteClock "0:00:01"]
[BlackClock "0:01:43"]

1. e4 {[%clk 0:03:00]}  c5 {[%clk 0:02:57]} 2. Nf3 {[%clk 0:03:00]}  d6 {[%clk 0:02:57]} 3. Bb5+ {[%clk 0:03:00]}  Nd7 {[%clk 0:02:57]} 4. O-O {[%clk 0:03:00]}  a6 {[%clk 0:02:57]} 5. Bxd7+ {[%clk 0:02:58]}  Bxd7 {[%clk 0:02:58]} 6. c3 {[%clk 0:02:58]}  Nf6 {[%clk 0:02:57]} 7. Re1 {[%clk 0:02:57]}  g6 {[%clk 0:02:53]} 8. d4 {[%clk 0:02:58]}  cxd4 {[%clk 0:02:53]} 9. cxd4 {[%clk 0:02:53]}  d5 {[%clk 0:02:52]} 10. e5 {[%clk 0:02:35]}  Ne4 {[%clk 0:02:52]} 11. Nbd2 {[%clk 0:02:23]}  Nxd2 {[%clk 0:02:50]} 12. Bxd2 {[%clk 0:02:21]}  Bg7 {[%clk 0:02:51]} 13. Rc1 {[%clk 0:01:46]}  O-O {[%clk 0:02:51]} 14. h3 {[%clk 0:01:41]}  Rc8 {[%clk 0:02:50]} 15. Qb3 {[%clk 0:01:39]}  Bc6 {[%clk 0:02:49]} 16. Bc3 {[%clk 0:01:31]}  Bh6 {[%clk 0:02:44]} 17. Rcd1 {[%clk 0:01:25]}  Qd7 {[%clk 0:02:43]} 18. Bd2 {[%clk 0:01:12]}  Ba4 {[%clk 0:02:40]} 19. Qd3 {[%clk 0:00:53]}  Bxd1 {[%clk 0:02:37]} 20. Bxh6 {[%clk 0:00:46]}  Bc2 {[%clk 0:02:37]} 21. Qd2 {[%clk 0:00:38]}  Rfe8 {[%clk 0:02:36]} 22. e6 {[%clk 0:00:36]}  fxe6 {[%clk 0:02:28]} 23. Ne5 {[%clk 0:00:36]}  Qa4 {[%clk 0:02:15]} 24. Qf4 {[%clk 0:00:35]}  Rf8 {[%clk 0:02:15]} 25. Bxf8 {[%clk 0:00:29]}  Rxf8 {[%clk 0:02:16]} 26. Qh4 {[%clk 0:00:25]}  Rf6 {[%clk 0:02:10]} 27. Rc1 {[%clk 0:00:21]}  Qxa2 {[%clk 0:02:07]} 28. Nd7 {[%clk 0:00:13]}  Rf7 {[%clk 0:02:00]} 29. Ne5 {[%clk 0:00:10]}  Rg7 {[%clk 0:01:57]} 30. Qg4 {[%clk 0:00:06]}  h5 {[%clk 0:01:47]} 31. Qxe6+ {[%clk 0:00:05]}  Kh7 {[%clk 0:01:48]} 32. Qc8 {[%clk 0:00:02]}  Qxb2 {[%clk 0:01:45]} 33. Qxc2 {[%clk 0:00:01]}  Qxd4 {[%clk 0:01:44]} 34. Qe2 {[%clk 0:00:01]}  Qf4 {[%clk 0:01:43]} 0-1


[Site "https://www.chess.com"]

[Event "Titled Tuesday Blitz December 20 Early 2022"]
[White "Truequitos"]
[Black "Korchmar_Vasiliy"]
[WhiteElo "2536"]
[BlackElo "2703"]
[Result "0-1"]
[Round "08"]
[TimeControl "180+2"]
[Date "2022.12.20"]
[WhiteClock "0:00:01"]
[BlackClock "0:00:10"]

1. Nf3 {[%clk 0:03:00]}  d5 {[%clk 0:02:57]} 2. d4 {[%clk 0:03:00]}  Nf6 {[%clk 0:02:57]} 3. c3 {[%clk 0:02:58]}  g6 {[%clk 0:02:50]} 4. Bg5 {[%clk 0:02:56]}  Bg7 {[%clk 0:02:49]} 5. Nbd2 {[%clk 0:02:57]}  c5 {[%clk 0:02:49]} 6. e3 {[%clk 0:02:57]}  Nbd7 {[%clk 0:02:48]} 7. Be2 {[%clk 0:02:57]}  O-O {[%clk 0:02:48]} 8. O-O {[%clk 0:02:57]}  b6 {[%clk 0:02:48]} 9. b4 {[%clk 0:02:57]}  c4 {[%clk 0:02:47]} 10. b5 {[%clk 0:02:57]}  Qc7 {[%clk 0:02:44]} 11. Qc2 {[%clk 0:02:52]}  e5 {[%clk 0:02:45]} 12. dxe5 {[%clk 0:02:51]}  Nxe5 {[%clk 0:02:45]} 13. Nxe5 {[%clk 0:02:50]}  Qxe5 {[%clk 0:02:46]} 14. Bf4 {[%clk 0:02:51]}  Qe7 {[%clk 0:02:45]} 15. a4 {[%clk 0:02:46]}  Bf5 {[%clk 0:02:43]} 16. Qb2 {[%clk 0:02:33]}  Nd7 {[%clk 0:02:42]} 17. Nf3 {[%clk 0:02:29]}  Nc5 {[%clk 0:02:34]} 18. Nd4 {[%clk 0:02:26]}  Bd3 {[%clk 0:02:30]} 19. Bg3 {[%clk 0:02:12]}  h5 {[%clk 0:02:29]} 20. h3 {[%clk 0:02:11]}  h4 {[%clk 0:02:28]} 21. Bh2 {[%clk 0:02:12]}  Bxd4 {[%clk 0:02:15]} 22. cxd4 {[%clk 0:02:11]}  Bxe2 {[%clk 0:02:15]} 23. Qxe2 {[%clk 0:02:06]}  Nd3 {[%clk 0:02:14]} 24. a5 {[%clk 0:01:58]}  bxa5 {[%clk 0:02:12]} 25. Rxa5 {[%clk 0:01:57]}  Qb4 {[%clk 0:01:55]} 26. Rfa1 {[%clk 0:01:56]}  Nc1 {[%clk 0:01:51]} 27. Qd1 {[%clk 0:01:39]}  Nb3 {[%clk 0:01:51]} 28. R1a4 {[%clk 0:01:24]}  Qc3 {[%clk 0:01:51]} 29. Rxa7 {[%clk 0:01:17]}  Rxa7 {[%clk 0:01:52]} 30. Rxa7 {[%clk 0:01:17]}  Qb2 {[%clk 0:01:53]} 31. Bd6 {[%clk 0:01:08]}  c3 {[%clk 0:01:45]} 32. Ba3 {[%clk 0:01:07]}  c2 {[%clk 0:01:37]} 33. Qf1 {[%clk 0:00:47]}  c1=Q {[%clk 0:00:44]} 34. Bxb2 {[%clk 0:00:46]}  Qxb2 {[%clk 0:00:44]} 35. b6 {[%clk 0:00:46]}  Nd2 {[%clk 0:00:39]} 36. Qd1 {[%clk 0:00:19]}  Qxb6 {[%clk 0:00:39]} 37. Rd7 {[%clk 0:00:17]}  Ne4 {[%clk 0:00:40]} 38. f3 {[%clk 0:00:13]}  Qe6 {[%clk 0:00:35]} 39. Ra7 {[%clk 0:00:09]}  Ng3 {[%clk 0:00:36]} 40. Qd3 {[%clk 0:00:07]}  Rb8 {[%clk 0:00:36]} 41. Ra1 {[%clk 0:00:07]}  Rb2 {[%clk 0:00:36]} 42. Re1 {[%clk 0:00:06]}  Qd6 {[%clk 0:00:19]} 43. e4 {[%clk 0:00:06]}  Qb4 {[%clk 0:00:19]} 44. Rd1 {[%clk 0:00:04]}  dxe4 {[%clk 0:00:17]} 45. fxe4 {[%clk 0:00:05]}  Qa4 {[%clk 0:00:14]} 46. e5 {[%clk 0:00:03]}  Qa2 {[%clk 0:00:14]} 47. Qf3 {[%clk 0:00:01]}  Rd2 {[%clk 0:00:10]} 0-1


[Site "https://www.chess.com"]